Cogmind - Beta 14 @@@ ROGUE MODE // 2024.09.10 @ 17:38:06 Player: THN-L0C Result: Destroyed by G-73 Enforcer with Phase Gun Performance ------------- Evolutions (8) 4000 Regions Visited (18) 3600 Robots Destroyed (182) 910 Value Destroyed (7554) 7554 Prototype IDs (48) 960 Alien Tech Used (0) 0 Bonus (4152) 4152 TOTAL SCORE: 21176 Bonus ------- High Alert Combat Kills 156 Follower Combat Kills 680 Awakened Behemoth Slayer 1000 Delivered SUBCON Basin 2000 Registered with UFD 300 Met Imprinter 300 Destroyed Z-Imprinter 1000 Met Warlord at Base 500 MAIN.C Attacked Warlord 500 Friendly Fire -2284 Cogmind --------- Core Integrity 0/1450 Matter 290/300 Energy 86/100 System Corruption 29% Temperature Cool (9) Movement Hovering (60) Location -2/Research Parts ------- > --- POWER (3) -------- (None) > --- PROPULSION (6) --- Improved Antigrav System > --- UTILITY (11) ----- Spectral Analyzer Experimental Targeting Computer Advanced Target Analyzer Advanced Target Analyzer > --- WEAPON (3) ------- (None) > --- INVENTORY (5) ---- Vortex Chain Reactor Quantum Capacitor Long-range Tractor Beam Peak State ------------ > --- POWER ------------ Antimatter Reactor Micro Antimatter Reactor Light Quantum Reactor > --- PROPULSION ------- Improved Antigrav System Improved Antigrav System Improved Antigrav System Cooled Antigrav System Antigrav Array > --- UTILITY ---------- Advanced Cooling System High-capacity Storage Unit Spectral Analyzer Long-range Sensor Array Experimental Targeting Computer Advanced Target Analyzer Advanced Transmission Jammer Improved Reaction Control System Improved Cloaking Device Layered Medium Armor Plating Advanced Remote Shield > --- WEAPON ----------- Matter Neutralizer Linear Accelerator CR-A16's Behemoth Slayer > --- INVENTORY -------- Zionite Light DM Reactor Zionite Light DM Reactor Vortex Chain Reactor Cooled Antigrav System Compact Matter Pod Advanced Signal Interpreter Quantum Capacitor Improved Transmission Jammer Layered Medium Armor Plating Makeshift Ablative Armor Experimental Thermal Shield Improved Remote Force Field Long-range Tractor Beam Cooled Proton Cannon Railgun Thermoblaster Dirty Datajack [Rating: 176] Favorites ----------- Power Micro Fission Core Engine Makeshift Power Source Power Core Micro Fission Core Reactor Antimatter Reactor Propulsion Antigrav System Treads Improved Treads Leg Enhanced Flexi-carbon Leg Wheel Subdweller Monowheel Hover Unit Antigrav System Utility High-capacity Storage Unit Device Experimental Thermal Shield Storage High-capacity Storage Unit Processor Improved Target Analyzer Hackware Improved System Shield Protection Centrium Light Armor Plating Weapon Hypervelocity Gauss Rifle Energy Gun Thermic Laser Energy Cannon Neutron Cannon Ballistic Gun Hypervelocity Gauss Rifle Ballistic Cannon Heavy Gauss Cannon Launcher Precision Rocket Launcher Special Weapon Multitool Impact Weapon Makeshift Hammer Slashing Weapon Makeshift Sword Piercing Weapon CR-A16's Pointy Stick Special Melee Weapon Dirty Datajack Build | -11 -10 -10 -10 -9 -9 -6 -6 -6 -6 -5 -5 -5 -5 -5 -4 -4 -3 -2 ------- Run | Yrd Mat Min Sub Rec Scr Fac Low Zio Dee Pro Fac Upp Upp War Pro Fac Res Res Slots Evolved 16 | . . . . . . 8 . . . . 2 . . . . 2 2 2 Power 2 | . . . . . . 1 . . . . . . . . . . . 1 Propulsion 4 | . . . . . . 2 . . . . . . . . . 1 1 . Utility 9 | . . . . . . 4 . . . . 2 . . . . 1 1 1 Weapon 1 | . . . . . . 1 . . . . . . . . . . . . Parts Attached 385 | 8 6 4 18 2 10 63 15 32 37 4 27 8 10 28 24 45 8 36 Power 49 | 1 . . 2 . 1 8 2 6 3 . 4 . 1 6 2 5 1 7 Engine 8 | 1 . . 2 . 1 4 . . . . . . . . . . . . Core 14 | . . . . . . 3 2 4 . . . . 1 3 1 . . . Reactor 27 | . . . . . . 1 . 2 3 . 4 . . 3 1 5 1 7 Propulsion 82 | 2 2 3 3 1 4 19 5 5 2 . 2 1 1 6 2 10 2 12 Treads 10 | 2 . . . . 1 5 . . . . . 1 1 . . . . . Leg 21 | . . 2 . . 3 9 . 4 1 . . . . . . . . 2 Wheel 8 | . . . 3 1 . 2 . . . . 2 . . . . . . . Hover 43 | . 2 1 . . . 3 5 1 1 . . . . 6 2 10 2 10 Flight . | . . . . . . . . . . . . . . . . . . . Utility 132 | 3 1 . 3 . 5 15 2 11 12 3 8 4 5 9 10 23 4 14 Device 72 | 2 . . 1 . 1 6 1 9 7 3 3 2 2 4 5 14 4 8 Storage 9 | 1 1 . 1 . 2 1 . 2 1 . . . . . . . . . Processor 15 | . . . 1 . 1 3 1 . 1 . 1 . . 1 . 2 . 4 Hackware 1 | . . . . . . 1 . . . . . . . . . . . . Protection 35 | . . . . . 1 4 . . 3 . 4 2 3 4 5 7 . 2 Artifact . | . . . . . . . . . . . . . . . . . . . Weapon 122 | 2 3 1 10 1 . 21 6 10 20 1 13 3 3 7 10 7 1 3 Energy Gun 13 | . . . 2 . . 4 . . 3 . 2 . . . . . . 2 Energy Cannon 15 | . . . . . . 2 . 2 2 . 2 2 . 1 1 3 . . Ballistic Gun 34 | 2 2 1 2 . . 1 4 2 8 . 5 . 1 3 3 . . . Ballistic Cannon 5 | . . . . . . . . . . . . . 1 1 2 . 1 . Launcher 18 | . 1 . 3 . . 4 . 2 3 1 1 . . . 2 1 . . Special Weapon 10 | . . . . 1 . 3 1 1 . . . 1 . 2 1 . . . Impact Weapon 2 | . . . . . . 1 . 1 . . . . . . . . . . Slashing Weapon 8 | . . . 3 . . 3 1 1 . . . . . . . . . . Piercing Weapon 13 | . . . . . . . . 1 4 . 3 . 1 . 1 3 . . Special Melee Weapon 4 | . . . . . . 3 . . . . . . . . . . . 1 Unidentified Prototypes 32 | . . . . . . 2 1 7 8 . 5 . 1 1 3 4 . . Parts Lost 89 | . . . 2 . . 16 . . . 2 19 1 . . 3 8 . 38 Power 15 | . . . 1 . . 3 . . . . 5 1 . . . 1 . 4 Propulsion 27 | . . . . . . 5 . . . . 4 . . . 1 3 . 14 Utility 28 | . . . 1 . . 4 . . . 2 4 . . . 1 2 . 14 Weapon 19 | . . . . . . 4 . . . . 6 . . . 1 2 . 6 Highest Loss Streak 16 | . . . 1 . . 6 . . . 2 16 1 . . 1 4 . 11 To Critical Strikes . | . . . . . . . . . . . . . . . . . . . Average Slot Usage (%) 91 | . 100 100 95 85 86 84 85 87 99 99 92 80 94 94 93 98 95 77 Engine 4 | . 14 14 13 14 14 6 2 . . . . . . . . . . . Core 6 | . . . . . . 3 9 13 16 16 12 . 4 4 . . . . Reactor 3 | . . . . . . 1 . . 11 11 9 5 5 5 10 9 9 11 Treads 1 | . 14 . . . 2 5 . . . . . 1 9 8 . . . . Leg 8 | . . 10 24 . 9 8 5 1 22 22 16 . . . . . . 1 Wheel 3 | . . . 3 28 15 5 . . . . 2 11 11 10 . . . . Hover 10 | . 14 17 . . . 1 20 24 . . . . . 2 22 25 24 14 Device 11 | . 14 14 5 . . 10 5 7 24 20 18 13 17 14 17 22 22 14 Storage 8 | . 14 14 13 14 13 6 6 6 6 5 5 5 5 5 5 5 4 3 Processor 6 | . . . 4 . 1 6 13 11 . 5 7 11 11 8 5 13 14 19 Protection 2 | . . . . . . 5 . . . . 5 10 8 9 11 4 4 2 Energy Cannon 1 | . . . . . . 1 5 . . . . 2 3 4 4 8 4 . Ballistic Gun 8 | . 21 19 11 . . . 6 12 11 11 10 5 5 5 3 . . . Launcher 1 | . 6 8 2 . . 2 . . 3 4 . . . . . . . . Special Weapon 1 | . . . . 10 14 . . . . . . 4 2 3 . . . . Impact Weapon 1 | . . . . . . . . 3 . . . . . . . . . . Slashing Weapon 3 | . . . 12 14 14 3 5 . . . . . . . . . . . Peak Build Rating 176 | 7 11 16 42 42 29 73 100 130 140 121 131 100 111 132 133 155 163 176 Average Rating 84 | 5 9 13 25 39 23 61 87 101 127 118 121 94 107 114 127 145 160 143 On Entrance 79 | . 7 11 16 42 22 27 68 99 126 118 118 91 100 109 127 126 137 163 Naked Turns . | . . . . . . . . . . . . . . . . . . . Heaviest Build 211 | 15 31 31 211 211 208 89 83 126 138 121 130 101 102 134 137 132 120 129 Greatest Support 112 | 40 40 35 40 40 40 80 44 112 112 112 112 40 40 48 49 62 75 75 Greatest Overweight (x) 69 | . 2 4 10 10 69 23 4 11 1 1 3 2 2 6 3 2 2 5 Average Overweight (x) 1 | . . 1 1 5 5 2 1 1 . 1 1 2 2 2 2 1 1 . Largest Inventory Capacity 35 | 8 15 15 35 35 35 20 20 20 20 20 20 20 20 20 20 20 20 20 Average Capacity 20 | 7 11 15 21 35 28 19 20 19 20 20 20 20 20 20 20 20 20 16 Most Carried 35 | 3 15 15 35 35 21 20 20 20 20 20 20 13 20 20 20 20 20 20 Average Carried 18 | 1 9 14 17 34 18 17 18 19 19 18 16 11 18 19 19 19 19 15 Final Capacity 35 | 8 15 15 35 35 35 20 20 20 20 20 20 20 20 20 20 20 20 5 Final Carried 35 | 3 15 15 35 21 19 20 20 20 20 18 13 13 20 20 18 20 20 5 Class Distribution -------------------- 21% | Scavenger-Assassin 20% | Scavenger-Mutant 20% | Scavenger-Tank 14% | Mutant 12% | Hauler-Mutant 5% | Scavenger-Gunner Dominant Class ---------------- Mutant | -10/Materials Mutant | -10/Mines Scavenger-Mutant | -10/Subcaves Hauler-Mutant | -9/Recycling Hauler-Mutant | -9/Scraptown Mutant | -6/Factory Scavenger-Assassin | -6/Lower Caves Scavenger-Assassin | -6/Zion Scavenger-Tank | -6/Deep Caves Scavenger-Tank | -5/Proximity Caves Scavenger-Mutant | -5/Factory Mutant | -5/Upper Caves Scavenger-Tank | -5/Upper Caves Scavenger-Gunner | -5/Warlord Scavenger-Tank | -4/Proximity Caves Scavenger-Mutant | -4/Factory Infiltrator-Mutant | -3/Research Scavenger-Mutant | -2/Research Resources | -11 -10 -10 -10 -9 -9 -6 -6 -6 -6 -5 -5 -5 -5 -5 -4 -4 -3 -2 ----------- Run | Yrd Mat Min Sub Rec Scr Fac Low Zio Dee Pro Fac Upp Upp War Pro Fac Res Res Matter Collected 8184 | 334 544 149 264 60 100 942 179 532 730 520 471 235 416 408 1050 600 149 501 Remotely 365 | 61 . . . . . . . . . . . . . . . 184 . 120 Salvage Created 8225 | 183 655 120 302 82 . 916 202 206 237 276 843 207 145 114 1763 646 15 1313 Parts 459 | 15 46 12 21 4 . 45 22 19 17 6 56 5 6 5 72 33 3 72 Haulers Intercepted 3 | . 1 . . . . 1 . . . . 1 . . . . . . . Recyclers Shooed 9 | . 5 1 . . . . . . . . 2 . . . . . . 1 Parts Field Recycled . | . . . . . . . . . . . . . . . . . . . Retrieved Matter . | . . . . . . . . . . . . . . . . . . . Parts Self-Destructed 78 | . . . 10 . . . . . . 4 . 1 6 . 57 . . . Prevented 4 | . . . . . . . . . . . . . 4 . . . . . Kills | -11 -10 -10 -10 -9 -9 -6 -6 -6 -6 -5 -5 -5 -5 -5 -4 -4 -3 -2 ------- Run | Yrd Mat Min Sub Rec Scr Fac Low Zio Dee Pro Fac Upp Upp War Pro Fac Res Res Combat Hostiles Destroyed 135 | . 13 6 7 . . 20 . . 5 6 18 3 2 . 29 13 . 13 Melee 21 | . . . . . . 2 . . . . . . 1 . . 7 . 11 Guns 38 | . 7 1 1 . . 7 . . . 4 5 1 . . 11 . . 1 Cannons 23 | . . . . . . 3 . . . . 1 1 1 . 11 5 . 1 AOE 49 | . 6 5 6 . . 6 . . 5 2 12 1 . . 6 . . . Classes Destroyed 28 | 2 7 . 3 . . 2 1 . 3 2 4 . 1 . 3 . . . Worker 9 | . 2 . . . . 1 . . . . 4 . . . . . . 2 Builder 7 | . 1 . . 1 . 1 . . . . 3 . . . . . 1 . Tunneler 5 | 4 . . . . . . . . . . 1 . . . . . . . Hauler 3 | . 1 . . . . 1 . . . . 1 . . . . . . . Recycler 8 | 1 3 . . 1 . . . . . . . . . . . . . 3 Mechanic 1 | . . . . . . . . . . . . . . . 1 . . . Operator 3 | . 1 . . . . 2 . . . . . . . . . . . . Drone 2 | . . . . . . . . . . 2 . . . . . . . . Watcher 5 | . 1 . . . . 1 . . . . 2 . . . . . . 1 Swarmer 25 | . 6 3 . . . 6 . . . . 2 2 . . 6 . . . Saboteur 1 | . . . . . . . . . . . 1 . . . . . . . Grunt 45 | . 7 3 . . . 9 . . . 3 5 . . . 14 3 . 1 Brawler 1 | . . . . . . . . . . . . . . . 1 . . . Duelist 1 | . . . . . . . . . . . . . . . 1 . . . Protector 2 | . . . . . . . . . . . 2 . . . . . . . Sentry 6 | . . . . . . 2 . . . . . 1 1 . 2 . . . Specialist 2 | . . . . . . . . . . . 2 . . . . . . . Hunter 12 | . . . . . . . . . . . 3 . . 1 4 2 . 2 Programmer 25 | . . . . . . 3 . . . 1 3 . . . . 8 . 10 Behemoth 3 | . . . . . . . . . . . . . 1 1 1 . . . Enhanced Grunt 2 | . . . . . . . . 2 . . . . . . . . . . Artisan 2 | . . . 2 . . . . . . . . . . . . . . . Cobbler 1 | . . . 1 . . . . . . . . . . . . . . . Subdweller 7 | . . . 7 . . . . . . . . . . . . . . . Ranger 3 | . . . . . . . 3 . . . . . . . . . . . Z-Technician 4 | . . . . . . . . . 4 . . . . . . . . . Z-Light 2 | . . . . . . . . . 2 . . . . . . . . . Decomposer 1 | . . . . . . . . . . . . 1 . . . . . . Packrat 1 | . . . . . . . . . . . . 1 . . . . . . Samaritan 1 | . . . . . . . . . . 1 . . . . . . . . Assembled 3 | . . . . . . . . . 3 . . . . . . . . . Thug 1 | . . . . . . . . . 1 . . . . . . . . . Fireman 1 | . . . . . . . . . 1 . . . . . . . . . Best Kill Streak 17 | 5 5 3 2 2 . 5 . . 4 2 17 3 1 . 7 4 1 5 Combat Bots Only 12 | . 3 3 2 . . 3 . . 2 2 12 3 1 . 7 4 . 3 Max Kills in Single Turn 4 | 1 3 3 2 1 . 2 1 1 2 2 4 1 1 1 4 1 1 1 Gunslinging 1 | . . . . . . 1 . . . . . . . . . . . . Exploded 4 | . 3 3 2 . . 2 . . 2 2 4 1 . . 4 . . . Melee 1 | . . . . . . 1 . . . . . . 1 . . 1 . 1 Uniques/NPCs Destroyed 1 | . . . . . . . . . 1 . . . . . . . . . Z-Imprinter (-6/Deep Caves) Combat | -11 -10 -10 -10 -9 -9 -6 -6 -6 -6 -5 -5 -5 -5 -5 -4 -4 -3 -2 -------- Run | Yrd Mat Min Sub Rec Scr Fac Low Zio Dee Pro Fac Upp Upp War Pro Fac Res Res Hostile Shots Fired 1447 | . 41 5 20 . . 263 . . 4 103 275 23 7 47 190 180 6 283 Missed 426 | . 14 2 6 . . 79 . . 2 30 84 3 4 16 62 49 2 73 Damage Taken 16538 | . 314 70 262 . . 2800 . . 30 730 2942 413 71 261 1428 2131 104 4982 Core 2728 | . 46 . 24 . . 369 . . . 58 408 22 33 20 83 186 22 1457 Absorbed by Shields 2379 | . . . . . . 349 . . 32 736 341 . . 205 626 90 . . Redirected to Shielding 215 | . . . . . . 103 . . . . 112 . . . . . . . Ignored by Resistances 992 | . . . . . . 21 . . . 42 258 53 8 138 472 . . . Regen/Repaired (Parts) 228 | . . . . . . 44 . . . . . . . 184 . . . . Core Remaining (%) 74 | 100 . . . . 72 . . . . 49 . . . . 43 83 98 . Volleys Fired 451 | 9 64 5 16 . . 55 2 25 25 46 45 6 8 19 79 34 . 13 Largest 3 | 2 2 2 2 . . 3 1 2 3 3 3 2 2 2 3 2 . 1 Hottest 411 | 40 40 40 100 . . 240 . 90 109 109 250 125 125 125 411 210 . 105 Shots Fired 795 | 18 121 8 20 . . 91 2 41 30 87 80 10 16 24 177 56 . 14 Gun 480 | 18 114 6 12 . . 71 . 32 13 80 61 4 8 4 54 . . 3 Cannon 244 | . . . . . . 15 . 5 10 . 10 4 8 7 118 56 . 11 Launcher 48 | . 7 2 8 . . 5 . . 7 7 9 . . . 3 . . . Special 23 | . . . . . . . 2 4 . . . 2 . 13 2 . . . Kinetic 494 | 18 114 6 8 . . 6 . 32 13 80 54 4 10 6 121 12 . 10 Thermal 227 | . . . 4 . . 80 . 9 10 . 10 4 6 5 54 41 . 4 Explosive 45 | . 7 2 8 . . 5 . . 7 7 9 . . . . . . . Electromagnetic 3 | . . . . . . . . . . . . . . . . 3 . . Phasic 7 | . . . . . . . . . . . 7 . . . . . . . Robot Hit Streak 28 | 7 10 6 14 . . 14 5 8 1 9 8 9 14 12 8 23 . 28 Robot Miss Streak 9 | 4 9 . 1 . . 6 . 5 5 4 2 1 2 2 7 4 . 1 Penetration Max 2 | . . . . . . . . . . 2 2 . . 1 2 1 . . Secondary Targets 2 | . . . . . . 1 . . . 1 . . . . . . . . Max Gunslinging Chain 1 | . . . . . . 1 . . . 1 . . . . . . . . Shots Hit Robots 580 | 12 71 6 25 2 . 78 7 20 10 50 53 12 9 19 93 54 1 58 Core Hits 347 | 6 36 7 15 . . 55 3 11 12 21 80 4 4 3 46 17 . 27 Critical Kills 29 | . . . . . . 1 . 2 . 5 8 1 . 1 10 1 . . Critical Parts Destroyed 41 | . 1 . . . . 1 . 1 . 13 14 1 1 . 9 . . . Critical Strikes 118 | . 1 . 1 . . 6 1 3 1 18 23 2 2 2 27 8 . 23 Burn 4 | . . . 1 . . 3 . . . . . . . . . . . . Meltdown 2 | . . . . . . 1 . . . . . . . . . 1 . . Destroy 67 | . 1 . . . . . . 3 . 18 22 2 1 1 19 . . . Blast 10 | . . . . . . . . . . . . . . . 8 1 . 1 Smash 1 | . . . . . . 1 . . . . . . . . . . . . Sever 2 | . . . . . . 1 1 . . . . . . . . . . . Impale 31 | . . . . . . . . . 1 . . . 1 1 . 6 . 22 Intensify 1 | . . . . . . . . . . . 1 . . . . . . . Melee Attacks 278 | . . . 51 2 . 45 5 . 20 . 10 3 1 4 2 58 5 72 Impact 6 | . . . . . . 6 . . . . . . . . . . . . Slashing 90 | . . . 51 2 . 32 5 . . . . . . . . . . . Piercing 182 | . . . . . . 7 . . 20 . 10 3 1 4 2 58 5 72 Sneak Attacks 33 | . . . 7 2 . 3 5 . 6 . . 2 . 2 . . 1 5 Combat Hostiles 3 | . . . . . . 3 . . . . . . . . . . . . Follow-up Attacks . | . . . . . . . . . . . . . . . . . . . Damage Inflicted 19984 | 154 1146 243 1073 147 . 2919 336 131 981 1181 3477 421 358 307 2864 2101 76 2069 Guns 4099 | 154 874 76 149 . . 1221 . 131 101 372 555 30 30 22 308 . . 76 Cannons 4634 | . . . . . . 388 . . . . 239 151 197 157 1933 1334 . 235 Explosions 6481 | . 269 158 489 . . 863 . . 487 809 2653 63 100 . 590 . . . Melee 4714 | . . . 435 147 . 447 336 . 393 . . 177 31 128 33 767 76 1744 Ramming 56 | . 3 9 . . . . . . . . 30 . . . . . . 14 Kinetic 4107 | 154 874 76 69 . . 19 . 131 101 372 357 30 30 89 1371 199 . 235 Thermal 5323 | . . . 80 . . 1683 . . . . 388 214 197 90 1460 1135 . 76 Explosive 5408 | . 269 158 489 . . 770 . . 487 809 2426 . . . . . . . Electromagnetic 178 | . . . . . . . . . . . 78 . 100 . . . . . Impact 137 | . . . . . . 137 . . . . . . . . . . . . Slashing 1210 | . . . 435 147 . 292 336 . . . . . . . . . . . Piercing 3367 | . . . . . . 18 . . 393 . . 177 31 128 33 767 76 1744 Phasic 198 | . . . . . . . . . . . 198 . . . . . . . Highest Corruption 29 | . . . . . . 3 3 3 . 8 11 11 11 11 2 5 1 29 Average Corruption 5 | . . . . . . 2 3 3 . 7 5 11 11 5 1 2 1 18 Corruption Purged 11 | . . . . . . . . . . . . . . . 2 9 . . Corruption Blocked . | . . . . . . . . . . . . . . . . . . . Effects 139 | . . . . . . 4 2 1 . 24 7 13 23 4 30 7 3 21 Message Errors 23 | . . . . . . 1 . . . 6 1 1 8 . 4 . 1 1 Matter Fused 39 | . . . . . . 1 1 1 . 7 2 7 3 1 5 2 2 7 Heat Flow Errors 11 | . . . . . . . . . . 2 . 1 2 . 6 . . . Energy Discharges 20 | . . . . . . 2 . . . 5 2 . 4 . 2 1 . 4 Parts Rejected 6 | . . . . . . . . . . . . 1 . . 2 1 . 2 Data Loss (minor) 22 | . . . . . . . 1 . . 1 1 2 4 2 6 1 . 4 Data Loss (major) 4 | . . . . . . . . . . 2 . . . . 1 1 . . Misfires 6 | . . . . . . . . . . . . . . 1 3 1 . 1 Alerts 4 | . . . . . . . . . . 1 . . 1 . 1 . . 1 Misdirections 4 | . . . . . . . . . . . 1 1 1 . . . . 1 Overload Shots . | . . . . . . . . . . . . . . . . . . . Overflow Damage 1339 | . 3 28 115 77 . 255 11 . 198 75 78 51 . . 74 180 36 158 Projectiles 151 | . . . . . . 20 . . . . . . . . 44 87 . . Explosions 391 | . 3 28 . . . 143 . . 34 75 78 . . . 30 . . . Melee 797 | . . . 115 77 . 92 11 . 164 . . 51 . . . 93 36 158 Knockbacks 16 | . . . . . . 1 . . . . . . . . 7 4 . 4 Impact 1 | . . . . . . 1 . . . . . . . . . . . . Kinetic 13 | . . . . . . . . . . . . . . . 6 4 . 3 Secondary 2 | . . . . . . . . . . . . . . . 1 . . 1 Self-Inflicted Damage 177 | . . 40 . . . . . . . 57 40 33 . . . . . 7 Shots 6 | . . 1 . . . . . . . 2 2 1 . . . . . . Rammed 6 | . 2 1 . . . . . . . . . . . . . . . 3 Targets Rammed 11 | . 3 1 . . . . . . . . 4 . . . . . . 3 Kicked 4 | . . . . . . . . . . . 4 . . . . . . . Crushed 1 | . 1 . . . . . . . . . . . . . . . . . Highest Temperature 667 | . 20 9 54 . . 667 . 373 421 372 414 199 204 188 210 321 7 223 Average Temperature 88 | . 5 5 26 . . 179 . 95 56 110 108 60 82 82 88 91 3 142 Received Heat Transfer 2507 | . 189 12 63 . . 659 . . . 151 789 45 9 115 289 78 18 90 Effects 42 | . . . . . . 21 . 9 3 7 2 . . . . . . . Shutdowns 14 | . . . . . . 5 . 3 2 2 2 . . . . . . . Energy Bleed 7 | . . . . . . 3 . 1 1 2 . . . . . . . . Interference 9 | . . . . . . 3 . 3 . 3 . . . . . . . . Matter Decay 2 | . . . . . . 1 . 1 . . . . . . . . . . Short Circuit 4 | . . . . . . 3 . 1 . . . . . . . . . . Damage (minor) 1 | . . . . . . 1 . . . . . . . . . . . . Damage (major) 4 | . . . . . . 4 . . . . . . . . . . . . Damage (core) 1 | . . . . . . 1 . . . . . . . . . . . . Siege Activations . | . . . . . . . . . . . . . . . . . . . Robots Corrupted . | . . . . . . . . . . . . . . . . . . . Combat Hostiles . | . . . . . . . . . . . . . . . . . . . Parts Fried 1 | . . . . . . . . . . . . . . . 1 . . . Impact Corruptions 3 | . . . . . . 3 . . . . . . . . . . . . Robots Melted 4 | . . . . . . 3 . . . . . . . . . 1 . . Combat Hostiles 3 | . . . . . . 2 . . . . . . . . . 1 . . Parts Melted 34 | . . . 1 . . 12 . . . 6 4 . . . 3 5 . 3 Heat Transferred 6770 | . . . 222 . . 3725 . . . . 960 50 . . 740 999 . 74 Parts Sabotaged . | . . . . . . . . . . . . . . . . . . . Parts Stolen . | . . . . . . . . . . . . . . . . . . . Parts Stripped . | . . . . . . . . . . . . . . . . . . . Power Chain Reactions 3 | . . . . . . . . . . . . 1 1 . 1 . . . Alert | -11 -10 -10 -10 -9 -9 -6 -6 -6 -6 -5 -5 -5 -5 -5 -4 -4 -3 -2 ------- Run | Yrd Mat Min Sub Rec Scr Fac Low Zio Dee Pro Fac Upp Upp War Pro Fac Res Res Peak Influence 663 | 25 232 288 . 40 . 347 . . . . 663 . . . . 218 133 213 Initial 600 | . 16 46 . . . . . . . . 600 . . . . 83 61 74 Average 141 | 10 117 183 . 23 . 146 . . . . 468 . . . . 82 89 79 Maximum Alert Level 2 | . 1 1 . . . 1 . . . . 2 . . . . 1 . 1 Low Security (%) 73 | 100 88 45 . 100 . 56 . . . . 8 . . . . 96 100 96 Level 1 21 | . 11 54 . . . 43 . . . . 29 . . . . 3 . 3 Level 2 5 | . . . . . . . . . . . 62 . . . . . . . Level 3 . | . . . . . . . . . . . . . . . . . . . Level 4 . | . . . . . . . . . . . . . . . . . . . Level 5 . | . . . . . . . . . . . . . . . . . . . High Security . | . . . . . . . . . . . . . . . . . . . Max Security . | . . . . . . . . . . . . . . . . . . . Squads Dispatched 32 | . 1 1 . . . 12 . . . . 4 . . . 1 5 2 6 Investigation 10 | . . 1 . . . 6 . . . . 1 . . . . . 1 1 Extermination 10 | . . . . . . 3 . . . . 1 . . . . 4 . 2 Reinforcement 10 | . 1 . . . . 3 . . . . 1 . . . . 1 1 3 Assault 1 | . . . . . . . . . . . . . . . 1 . . . Garrison 1 | . . . . . . . . . . . 1 . . . . . . . Intercept . | . . . . . . . . . . . . . . . . . . . Searches Triggered 1 | . . . . . . . . . . . 1 . . . . . . . Construction Impeded 2 | . . . . . . 1 . . . . 1 . . . . . . . Haulers Reinforced . | . . . . . . . . . . . . . . . . . . . Active Scanning Responses . | . . . . . . . . . . . . . . . . . . . Cargo Convoy Interrupts 2 | . . . . . . 1 . . . . 1 . . . . . . . Stealth | -11 -10 -10 -10 -9 -9 -6 -6 -6 -6 -5 -5 -5 -5 -5 -4 -4 -3 -2 --------- Run | Yrd Mat Min Sub Rec Scr Fac Low Zio Dee Pro Fac Upp Upp War Pro Fac Res Res Distress Signals 5 | . 2 . . . . . . . . . . . . . . 2 . 1 Communications Jammed 22 | . . . . . . 1 . . . . . . . . . . . 21 Distress Signals 21 | . . . . . . 1 . . . . . . . . . . . 20 Times Spotted 307 | . 27 5 13 . . 40 . 2 4 12 40 4 4 50 44 23 2 37 Peak Tracking Total 18 | . 5 3 2 . . 7 . 1 2 4 11 3 3 18 10 5 1 12 Tactical Retreats 32 | . . . . . . 3 . . . 3 9 . . 2 8 3 1 3 Traps | -11 -10 -10 -10 -9 -9 -6 -6 -6 -6 -5 -5 -5 -5 -5 -4 -4 -3 -2 ------- Run | Yrd Mat Min Sub Rec Scr Fac Low Zio Dee Pro Fac Upp Upp War Pro Fac Res Res Traps Triggered 6 | . . . . . . 4 . . . . 1 . . . . . . 1 Indirectly . | . . . . . . . . . . . . . . . . . . . Trap Hack Attempts . | . . . . . . . . . . . . . . . . . . . Triggered . | . . . . . . . . . . . . . . . . . . . Disarmed . | . . . . . . . . . . . . . . . . . . . Reprogrammed . | . . . . . . . . . . . . . . . . . . . Reused 3 | . . . . . . 1 . . 2 . . . . . . . . . Traps Extracted . | . . . . . . . . . . . . . . . . . . . Installed 3 | . . . . . . 1 . . 2 . . . . . . . . . Triggered 11 | . . . . . . 3 . . . . . . 2 5 1 . . . Most Traps Carried 3 | . . . . . 3 3 2 2 2 . . . . . . . . . Machines | -11 -10 -10 -10 -9 -9 -6 -6 -6 -6 -5 -5 -5 -5 -5 -4 -4 -3 -2 ---------- Run | Yrd Mat Min Sub Rec Scr Fac Low Zio Dee Pro Fac Upp Upp War Pro Fac Res Res Machines Disabled 23 | . 2 7 1 . . 4 . 3 1 . 3 . . 1 . 1 . . Max in Single Turn 7 | . 1 7 1 . . 2 . 1 1 . 2 . . 1 . 1 . . Garrison Access 1 | . . . . . . 1 . . . . . . . . . . . . Machines Repaired . | . . . . . . . . . . . . . . . . . . . Machines Dismantled . | . . . . . . . . . . . . . . . . . . . Machines Sabotaged . | . . . . . . . . . . . . . . . . . . . Overloaded Fab Kills . | . . . . . . . . . . . . . . . . . . . Hacking | -11 -10 -10 -10 -9 -9 -6 -6 -6 -6 -5 -5 -5 -5 -5 -4 -4 -3 -2 --------- Run | Yrd Mat Min Sub Rec Scr Fac Low Zio Dee Pro Fac Upp Upp War Pro Fac Res Res Machines Accessed 45 | . 7 1 4 7 2 14 . . . . 2 . . . . 4 2 2 Terminals 27 | . 7 . . 6 . 8 . . . . 2 . . . . 3 . 1 Fabricators 3 | . . . . . . 1 . . . . . . . . . . 2 . Repair Stations 1 | . . . . . . 1 . . . . . . . . . . . . Recycling Units 3 | . . . . 1 . 1 . . . . . . . . . . . 1 Scanalyzers 2 | . . . . . . 1 . . . . . . . . . 1 . . Garrison Access 2 | . . . . . . 2 . . . . . . . . . . . . Total Hacks 123 | . 18 1 15 18 12 36 . . . . 6 . . . . 9 5 3 Successful 83 | . 12 1 15 12 12 21 . . . . 2 . . . . 5 2 1 Failed 39 | . 5 . . 6 . 15 . . . . 4 . . . . 4 3 2 Catastrophic 8 | . . . . . . 3 . . . . 2 . . . . 2 . 1 Database Lockouts 1 | . 1 . . . . . . . . . . . . . . . . . Manual 60 | . 18 . . 16 . 15 . 1 . . 4 . . . . 5 . 1 Terminals 69 | . 18 . . 17 . 19 . . . . 6 . . . . 7 . 2 Fabricators 7 | . . . . . . 2 . . . . . . . . . . 5 . Repair Stations 2 | . . . . . . 2 . . . . . . . . . . . . Recycling Units 3 | . . . . 1 . 1 . . . . . . . . . . . 1 Scanalyzers 10 | . . . . . . 8 . . . . . . . . . 2 . . Garrison Access 4 | . . . . . . 4 . . . . . . . . . . . . Terminal Hacks 41 | . 2 1 15 3 12 5 . . . . 2 . . . . 1 . . Record 24 | . . . 12 . 12 . . . . . . . . . . . . . Part Schematic 1 | . . . . . . 1 . . . . . . . . . . . . Robot Analysis 3 | . 2 . . 1 . . . . . . . . . . . . . . Open Door 2 | . . 1 1 . . . . . . . . . . . . . . . Branch Access Points 1 | . . . . 1 . . . . . . . . . . . . . . Recycling Unit Index 1 | . . . . . . . . . . . . . . . . 1 . . Alert Level 1 | . . . . . . . . . . . 1 . . . . . . . Unreport Threat 2 | . . . . . . 1 . . . . 1 . . . . . . . Locate Traps 1 | . . . . . . 1 . . . . . . . . . . . . Transport Status 1 | . . . . . . 1 . . . . . . . . . . . . Hauler Manifests 1 | . . . . . . 1 . . . . . . . . . . . . Zone Layout 1 | . . . . 1 . . . . . . . . . . . . . . Derelict Proto ID Bank 1 | . . . 1 . . . . . . . . . . . . . . . Release Object 1 | . . . 1 . . . . . . . . . . . . . . . Fabricator Hacks 3 | . . . . . . 1 . . . . . . . . . . 2 . Load Schematic 1 | . . . . . . . . . . . . . . . . . 1 . Build 2 | . . . . . . 1 . . . . . . . . . . 1 . Repair Station Hacks . | . . . . . . . . . . . . . . . . . . . Recycling Unit Hacks . | . . . . . . . . . . . . . . . . . . . Scanalyzer 9 | . . . . . . 7 . . . . . . . . . 2 . . Insert Component 4 | . . . . . . 3 . . . . . . . . . 1 . . Analyze 5 | . . . . . . 4 . . . . . . . . . 1 . . Garrison Access Hacks 1 | . . . . . . 1 . . . . . . . . . . . . Seal Access 1 | . . . . . . 1 . . . . . . . . . . . . Unauthorized Hacks 29 | . 10 . . 9 . 7 . . . . . . . . . 2 . 1 Terminals 26 | . 10 . . 8 . 6 . . . . . . . . . 2 . . Botnet 7 | . 3 . . 2 . 1 . . . . . . . . . 1 . . Operators 1 | . 1 . . . . . . . . . . . . . . . . . Skim 18 | . 6 . . 6 . 5 . . . . . . . . . 1 . . Fabricators . | . . . . . . . . . . . . . . . . . . . Repair Stations 2 | . . . . . . 1 . . . . . . . . . . . 1 Recycling Units 1 | . . . . 1 . . . . . . . . . . . . . . Tunnel 1 | . . . . 1 . . . . . . . . . . . . . . Scrapoids 2 | . . . . . . 1 . . . . . . . . . . . 1 Scanalyzers . | . . . . . . . . . . . . . . . . . . . Garrison Access . | . . . . . . . . . . . . . . . . . . . Data Cores Recovered 1 | . . . . . . 1 . . . . . . . . . . . . Used . | . . . . . . . . . . . . . . . . . . . Hacking Detections 24 | . 6 . . 3 . 6 . . . . 2 . . . . 4 2 1 Full Trace Events 7 | . . . . 1 . 4 . . . . 1 . . . . . 1 . Feedback Events 1 | . . . . . . . . . . . . . . . . . 1 . Corruption 1 | . . . . . . . . . . . . . . . . . 1 . Feedback Blocked . | . . . . . . . . . . . . . . . . . . . Robot Schematics Acquired . | . . . . . . . . . . . . . . . . . . . Robots Built . | . . . . . . . . . . . . . . . . . . . Authchips . | . . . . . . . . . . . . . . . . . . . Time . | . . . . . . . . . . . . . . . . . . . Total Robot Build Rating . | . . . . . . . . . . . . . . . . . . . Part Schematics Acquired 11 | . . . . . . 10 . . . . . . . . . 1 . . Parts Built 4 | . . . . . . 2 . . . . . . . . . . 2 . Authchips . | . . . . . . . . . . . . . . . . . . . Time 116 | . . . . . . 47 . . . . . . . . . . 69 . Total Part Build Rating 28 | . . . . . . 10 . . . . . . . . . . 18 . Parts Repaired . | . . . . . . . . . . . . . . . . . . . Time . | . . . . . . . . . . . . . . . . . . . Parts Recycled . | . . . . . . . . . . . . . . . . . . . Recycled Matter . | . . . . . . . . . . . . . . . . . . . Retrieved Matter . | . . . . . . . . . . . . . . . . . . . Retrieved Components . | . . . . . . . . . . . . . . . . . . . Parts Scanalyzed 4 | . . . . . . 3 . . . . . . . . . 1 . . Part Schematics Acquired 4 | . . . . . . 3 . . . . . . . . . 1 . . Parts Damaged 1 | . . . . . . 1 . . . . . . . . . . . . Bothacking | -11 -10 -10 -10 -9 -9 -6 -6 -6 -6 -5 -5 -5 -5 -5 -4 -4 -3 -2 ------------ Run | Yrd Mat Min Sub Rec Scr Fac Low Zio Dee Pro Fac Upp Upp War Pro Fac Res Res Used RIF Installer . | . . . . . . . . . . . . . . . . . . . Robots Hacked 2 | . . . . . . . . . . . . 1 . 1 . . . . Non-combat . | . . . . . . . . . . . . . . . . . . . Combat 1 | . . . . . . . . . . . . . . 1 . . . . Robot Hacks Applied 1 | . . . . . . . . . . . . . . 1 . . . . parse_system 1 | . . . . . . . . . . . . . . 1 . . . . Manual 1 | . . . . . . . . . . . . 1 . . . . . . Relay Couplers Released 4 | . . . . . . . . . . . . . . . . . . 4 Programmers 4 | . . . . . . . . . . . . . . . . . . 4 Fabnet Peak Effective % . | . . . . . . . . . . . . . . . . . . . Robots Rewired 7 | . . . . . . . . . . . . . . 5 2 . . . Allies Hacked 1 | . . . . . . . . . . . . . . 1 . . . . Hacks Repelled . | . . . . . . . . . . . . . . . . . . . Allies | -11 -10 -10 -10 -9 -9 -6 -6 -6 -6 -5 -5 -5 -5 -5 -4 -4 -3 -2 -------- Run | Yrd Mat Min Sub Rec Scr Fac Low Zio Dee Pro Fac Upp Upp War Pro Fac Res Res Total Allies 29 | . . 5 . . . 6 . 10 . . . 1 . 5 2 . . . Largest Group 10 | . . 3 3 . . 5 . 10 8 . . 1 1 5 2 . . . Highest-Rated Group 392 | . . 58 40 . . 143 . 392 200 . . 85 85 269 107 . . . Highest-Rated Ally 96 | . . 31 16 . . 32 . 96 31 . . 85 85 85 65 . . . Total Orders 13 | . . . . . . . . . . . . . . 13 . . . . STAY 11 | . . . . . . . . . . . . . . 11 . . . . FOLLOW 2 | . . . . . . . . . . . . . . 2 . . . . Ally Attacks 132 | . . 7 38 . . 21 . . 27 . . . 8 21 10 . . . Total Damage 2527 | . . 106 446 . . 340 . . 321 . . . 416 620 278 . . . Kills 20 | . . . 9 . . 2 . . 1 . . . 2 5 1 . . . Allies Corrupted . | . . . . . . . . . . . . . . . . . . . Allies Melted . | . . . . . . . . . . . . . . . . . . . Intel | -11 -10 -10 -10 -9 -9 -6 -6 -6 -6 -5 -5 -5 -5 -5 -4 -4 -3 -2 ------- Run | Yrd Mat Min Sub Rec Scr Fac Low Zio Dee Pro Fac Upp Upp War Pro Fac Res Res Robot Analysis Total 3 | . 2 . . 1 . . . . . . . . . . . . . . Derelict Logs Recovered 15 | . . 2 2 . 5 . . 2 . . . 1 . . 3 . . . Drone Launches . | . . . . . . . . . . . . . . . . . . . Drone Recoveries . | . . . . . . . . . . . . . . . . . . . Exploration | -11 -10 -10 -10 -9 -9 -6 -6 -6 -6 -5 -5 -5 -5 -5 -4 -4 -3 -2 ------------- Run | Yrd Mat Min Sub Rec Scr Fac Low Zio Dee Pro Fac Upp Upp War Pro Fac Res Res Turns Passed 36008 | 126 1433 730 3911 831 3604 2583 249 9521 3540 1322 843 384 633 1109 2265 1974 357 593 Spaces Moved 17066 | 53 631 347 2263 503 1694 1360 125 3538 1698 328 342 247 435 720 1194 982 298 308 Core 75 | 1 . . . . 12 3 . . . . . . . . . . . 59 Treads 398 | 52 330 . . . . 16 . . . . . . . . . . . . Legs 6217 | . . 106 1956 . 855 623 30 298 1698 328 259 . . . . . . 64 Wheels 3823 | . . . 307 503 827 718 . . . . 83 247 435 703 . . . . Hover 6553 | . 301 241 . . . . 95 3240 . . . . . 17 1194 982 298 185 Flight . | . . . . . . . . . . . . . . . . . . . Fastest Speed 48 | 50 160 130 130 160 130 100 108 48 120 190 120 130 130 130 159 96 96 50 Average Speed 153 | 157 167 162 156 160 210 159 148 120 180 190 175 130 130 132 164 126 97 99 Slowest Speed 3500 | 160 240 310 480 210 3500 1200 296 750 190 190 190 130 130 210 232 170 159 300 Overloaded Moves . | . . . . . . . . . . . . . . . . . . . Propulsion Burnouts . | . . . . . . . . . . . . . . . . . . . Robots Hopped . | . . . . . . . . . . . . . . . . . . . Cave-ins Triggered . | . . . . . . . . . . . . . . . . . . . Exploration Rate (%) 53 | 5 93 81 65 84 87 40 6 88 79 62 10 43 55 79 99 19 8 11 Regions Visited 18 Branch Regions 12 Pre-discovered Areas 5 | . . . . 2 2 . . . . . . . . . 1 . . . Known Exits Taken 5 | . . 1 1 . . 1 1 . . . 1 . . . . . . . Unknown Exits Taken 13 | 1 1 . . 1 1 . . 1 1 1 . 1 1 1 1 1 1 . Scrap Searched 29 | . . 1 8 . 11 . . 3 . 1 . 1 2 . 2 . . . Spaces Dug 115 | . 9 . 7 . . 21 . . 18 . 10 . 2 2 . 33 4 9 Terrain Destroyed 608 | . 34 18 45 . . 96 . . 79 122 80 2 3 3 71 42 4 9 Melee 75 | . . . 7 . . 21 . . 4 . 10 . . 2 . 24 4 3 Projectile 115 | . . . . . . 3 . . 16 . 4 . 3 1 64 18 . 6 AOE 405 | . 34 18 38 . . 72 . . 59 116 60 2 . . 6 . . . Terrain Rammed . | . . . . . . . . . . . . . . . . . . . Walls Destroyed . | . . . . . . . . . . . . . . . . . . . Machines Disabled . | . . . . . . . . . . . . . . . . . . . Actions | -11 -10 -10 -10 -9 -9 -6 -6 -6 -6 -5 -5 -5 -5 -5 -4 -4 -3 -2 --------- Run | Yrd Mat Min Sub Rec Scr Fac Low Zio Dee Pro Fac Upp Upp War Pro Fac Res Res Total 25723 | 73 881 512 2557 522 1747 1619 199 8767 2096 940 485 291 484 851 1326 1570 357 446 Wait 7058 | 1 167 131 151 12 . 56 6 5123 250 561 48 26 10 44 17 408 37 10 Move 17048 | 52 630 346 2262 502 1693 1359 124 3537 1697 327 341 246 434 719 1193 981 297 308 Hop . | . . . . . . . . . . . . . . . . . . . Pick Up 259 | 3 10 12 37 1 22 24 17 33 29 1 8 2 14 16 5 20 4 1 Fast Attach 75 | 7 . . 1 . 3 14 3 3 2 . 5 3 1 1 3 4 2 23 Attach 76 | . . . 2 . 1 13 2 6 5 2 13 2 2 1 6 11 2 8 Detach 16 | . . . . . 1 . 4 2 3 . 1 . . 1 2 2 . . Swap 234 | 1 6 4 15 2 6 36 10 23 30 2 9 3 7 26 15 30 4 5 Drop 209 | . 1 13 22 1 21 14 25 15 33 1 1 . 7 20 4 22 6 3 Fire 451 | 9 64 5 16 . . 55 2 25 25 46 45 6 8 19 79 34 . 13 Melee 275 | . . . 51 2 . 42 5 . 20 . 10 3 1 4 2 58 5 72 Ram 4 | . . 1 . . . . . . . . . . . . . . . 3 Kick 4 | . . . . . . . . . . . 4 . . . . . . . Crush 3 | . 3 . . . . . . . . . . . . . . . . . Escape Stasis . | . . . . . . . . . . . . . . . . . . . Rewire . | . . . . . . . . . . . . . . . . . . . Trap 3 | . . . . . . 1 . . 2 . . . . . . . . . Miscellaneous 8 | . . . . 2 . 5 1 . . . . . . . . . . . Route ------- -11/Scrapyard -10/Materials (discovered 6 exits: *Mat x3 / *Min x2 / Sub) -10/Mines (discovered 3 exits: *Mat x2 / *Sub) -10/Subcaves (discovered 3 exits: [*Mat x2] / *Rec) -9/Recycling (discovered 2 exits: [*Fac] / *Scr) -9/Scraptown (discovered 2 exits: *Fac x2) -6/Factory (discovered 2 exits: *Fac / *Low) -6/Lower Caves -6/Zion (discovered 2 exits: [*Dee] / [*Pro]) -6/Deep Caves -5/Proximity Caves -5/Factory -5/Upper Caves -5/Upper Caves -5/Warlord -4/Proximity Caves -4/Factory -3/Research -2/Research History --------- Turn | Location | Event 11 | -11/Scrapyard | Discovered new exit (range 15) 127 | -11/Scrapyard | Entered Materials 212 | -10/Materials | Discovered new exit (range 8) 318 | -10/Materials | Build established: Mutant 830 | -10/Materials | Discovered new exit (range 5) 1116 | -10/Materials | Discovered new exit (range 5) 1170 | -10/Materials | Discovered new exit (range 15) 1201 | -10/Materials | Identified exit to Subcaves 1238 | -10/Materials | Discovered new exit (range 15) 1290 | -10/Materials | Central database locked down 1312 | -10/Materials | Learned 2 Mines zone layouts 1384 | -10/Materials | Loaded intel: 8 terminal locations 1435 | -10/Materials | Learned 2 Storage zone layouts 1560 | -10/Materials | Entered Mines 1561 | -10/Mines | Identified exit to Materials 1633 | -10/Mines | Learned Materials emergency access door positions 1657 | -10/Mines | Met a Derelict shopkeep closing up shop 1947 | -10/Mines | Learned Materials stockpile data 2016 | -10/Mines | Discovered exit to Materials (range 12) 2081 | -10/Mines | Assisted by bots powering up and referring to "LRC-V3" 2290 | -10/Mines | Entered Subcaves 2290 | -10/Subcaves | Accompanied by 3 allies 2291 | -10/Subcaves | Identified exit to Recycling 2374 | -10/Subcaves | Discovered new exit (range 13) 2561 | -10/Subcaves | Visited 4L-MR0's lab 2576 | -10/Subcaves | Found Power Bank 2645 | -10/Subcaves | Shifting Twisted Machinery released Sub. Monowheel 2655 | -10/Subcaves | Shifting Twisted Machinery released Sub. Machine Gun 2745 | -10/Subcaves | Build established: Scavenger-Mutant 2786 | -10/Subcaves | Disturbed a concealed Subdweller 3035 | -10/Subcaves | Discovered new exit (range 9) 3215 | -10/Subcaves | Ambushed by angry Subdweller bent on revenge 3239 | -10/Subcaves | A swath of the cavern ceiling suddenly collapsed 4372 | -10/Subcaves | Shifting Twisted Machinery released Battle Rifle 4378 | -10/Subcaves | Shifting Twisted Machinery released Piercing Trap 4380 | -10/Subcaves | Shifting Twisted Machinery released Sub. Shrapnel Launcher 4392 | -10/Subcaves | Shifting Twisted Machinery released Riot Gun 4527 | -10/Subcaves | Visited Clippyterm 4531 | -10/Subcaves | Learned Research machine intel 4715 | -10/Subcaves | A swath of the cavern ceiling suddenly collapsed 5251 | -10/Subcaves | Build established: Hauler-Mutant 6136 | -10/Subcaves | Found SUBCON Basin 6201 | -10/Subcaves | Entered Recycling 6697 | -9/Recycling | Discovered new exit (range 5) 6946 | -9/Recycling | Learned Materials terminal intel 6967 | -9/Recycling | Scanned before Scraplab entrance 6991 | -9/Recycling | Entered Scraplab 7027 | -9/Recycling | Discovered new exit (range 3) 7032 | -9/Recycling | Entered Scraptown 7239 | -9/Scraptown | Visited UFD Registry 7239 | -9/Scraptown | Registered with UFD as "Longmachine" 7274 | -9/Scraptown | Visited Bundlers 7667 | -9/Scraptown | Scanned Subdweller tech in exchange for log data 7671 | -9/Scraptown | Learned location of Warlord (-5) 7673 | -9/Scraptown | Learned Research trap positions 7679 | -9/Scraptown | Learned location of Quarantine (-2) 7681 | -9/Scraptown | Learned Factory terminal intel 7782 | -9/Scraptown | Discovered new exit (range 13) 7852 | -9/Scraptown | Visited SPCMW 7885 | -9/Scraptown | Visited Cyclists 7910 | -9/Scraptown | Entered Cyclist Reading Room 8053 | -9/Scraptown | Visited LU-1G1's Boring Crew 8087 | -9/Scraptown | Visited Junk Repository 8146 | -9/Scraptown | Visited Scrapoid Research Area 8215 | -9/Scraptown | Delivered Scrap Shield to a Scientist 8314 | -9/Scraptown | Visited Derelict Rescue Squad 8374 | -9/Scraptown | Visited Scrap Suit Storage 8440 | -9/Scraptown | Visited Curators Association 8521 | -9/Scraptown | Visited Junk Repository 8597 | -9/Scraptown | Visited Science Guys 9394 | -9/Scraptown | Visited CPS Storage 10007 | -9/Scraptown | Visited Awakened 10047 | -9/Scraptown | Visited Cave Peace 10127 | -9/Scraptown | Build established: Mutant 10397 | -9/Scraptown | Found DRS Beacon 10610 | -9/Scraptown | Found Scrap Suit 10630 | -9/Scraptown | Discovered new exit (range 3) 10636 | -9/Scraptown | Entered Factory 10636 | -6/Factory | Evolved 8 slots: Power x1, Propulsion x2, Utility x4, Weapon x1 10637 | -6/Factory | Loaded intel: 23 terminal locations 10687 | -6/Factory | Discovered new exit (range 6) 11240 | -6/Factory | Cargo convoy interrupted 11332 | -6/Factory | Found Prototype Launcher 11332 | -6/Factory | Identified Scatter Rocket Array 11546 | -6/Factory | Tech Extrapolator generated special schematic: Energy Deflector 11661 | -6/Factory | Scrapoids reinforcements arrived? 11717 | -6/Factory | Found Scrap Suit 11743 | -6/Factory | Fabricated Imp. Medium Treads? 11749 | -6/Factory | Lost 5 allies 12345 | -6/Factory | Build established: Scavenger-Tank 12469 | -6/Factory | Lost 6 parts (1p2n3w) 12564 | -6/Factory | Lost 4 parts (1p3u) 12845 | -6/Factory | Build established: Scavenger-Mutant 12862 | -6/Factory | Discovered new exit (range 12) 12925 | -6/Factory | Found Prototype Device 12926 | -6/Factory | Lost 5 parts (1p3n1w) 13169 | -6/Factory | Identified exit to Lower Caves 13219 | -6/Factory | Entered Lower Caves 13221 | -6/Lower Caves | UFD Scientist delivered a prototype 13226 | -6/Lower Caves | Found Prototype Protection 13236 | -6/Lower Caves | Activated DRS Beacon 13240 | -6/Lower Caves | Identified Active Sensor Suite 13299 | -6/Lower Caves | A Derelict revealed a hidden shortcut to a safe place 13311 | -6/Lower Caves | Identified exit to Zion 13468 | -6/Lower Caves | Entered Zion 13480 | -6/Zion | Learned 4 Factory zone layouts 13497 | -6/Zion | Learned 8 Factory zone layouts 13508 | -6/Zion | System corruption cleaned by Quarantine Array 13590 | -6/Zion | Build established: Scavenger-Assassin 13621 | -6/Zion | Discovered new exit (range 9) 13655 | -6/Zion | Given A8's code to call for help 18458 | -6/Zion | Found CR-A16's Pointy Stick 19724 | -6/Zion | Given the Hacking Drone Bay 19756 | -6/Zion | Found Prototype Device 19841 | -6/Zion | Gained Derelict followers 20192 | -6/Zion | Gained Derelict followers 20351 | -6/Zion | Found Prototype Device 20726 | -6/Zion | Turned away by Imprinter 21203 | -6/Zion | Enhanced Grunt warped into view, answering call for help 21204 | -6/Zion | Enhanced Grunt warped into view, answering call for help 21367 | -6/Zion | Build established: Scavenger-Skirmisher 21513 | -6/Zion | Found Prototype Device 21513 | -6/Zion | Identified Exp. Thermal Shield 21917 | -6/Zion | Discovered new exit (range 3) 21917 | -6/Zion | Saw the warning signs outside the Deep Caves entrance 21958 | -6/Zion | Attached Power Bank, gained temporary slots: Power x3 22247 | -6/Zion | Build established: Scavenger-Gunner 22446 | -6/Zion | Found Exp. Thermal Shield 22750 | -6/Zion | Identified Hacking Drone Bay 22752 | -6/Zion | Identified Phasing AFG 22989 | -6/Zion | Entered Deep Caves 22989 | -6/Deep Caves | Accompanied by 8 allies 23152 | -6/Deep Caves | Build established: Scavenger-Tank 23295 | -6/Deep Caves | Attacked by Z-Imprinter 23305 | -6/Deep Caves | Allies destroyed Z-Imprinter 23348 | -6/Deep Caves | Lost 7 allies 23372 | -6/Deep Caves | Found Prototype Protection 23372 | -6/Deep Caves | Identified Zio. Weapon Casing 23554 | -6/Deep Caves | Z-Facility disabled 24893 | -6/Deep Caves | Discovered new exit (range 6) 24990 | -6/Deep Caves | Found Prototype Energy Cannon 24990 | -6/Deep Caves | Identified Firepult 26499 | -6/Deep Caves | Build established: Scavenger-Mutant 26529 | -6/Deep Caves | Entered Proximity Caves 26531 | -5/Proximity Caves | Spotter reported a threat 26532 | -5/Proximity Caves | Spotter reported a threat 26705 | -5/Proximity Caves | Spotter reported a threat 26706 | -5/Proximity Caves | Spotter reported a threat 26822 | -5/Proximity Caves | Build established: Scavenger-Tank 26982 | -5/Proximity Caves | Core integrity fell below 50% 27128 | -5/Proximity Caves | Received a Behemoth hack from an annoying Tinkerer 27276 | -5/Proximity Caves | Discovered new exit (range 16) 27851 | -5/Proximity Caves | Entered Factory 27851 | -5/Factory | Evolved 2 slots: Utility x2 27852 | -5/Factory | Identified exit to Upper Caves 28151 | -5/Factory | Search patrols dispatched 28173 | -5/Factory | Build established: Scavenger-Mutant 28477 | -5/Factory | Cargo convoy interrupted 28531 | -5/Factory | Destroyed 12 combat bots 28608 | -5/Factory | Lost 16 parts (4p3n4u5w) 28633 | -5/Factory | Garrison activated, responded to threat 28638 | -5/Factory | System corruption reached 10% 28694 | -5/Factory | Entered Upper Caves 28745 | -5/Upper Caves | Spotted B-75 Beast 28757 | -5/Upper Caves | Befriended a Behemoth using the annoying Tinkerer's hack 28973 | -5/Upper Caves | Attracted the attention of an 0b10 checkpoint 28988 | -5/Upper Caves | Discovered new exit (range 8) 28990 | -5/Upper Caves | Learned Factory emergency access door positions 29078 | -5/Upper Caves | Entered another Upper Caves area 29078 | -5/Upper Caves | Accompanied by 1 ally 29215 | -5/Upper Caves | Attracted the attention of an 0b10 checkpoint 29274 | -5/Upper Caves | Build established: Scavenger-Tank 29369 | -5/Upper Caves | Spotted B-75 Beast 29436 | -5/Upper Caves | Destroyed B-75 Beast 29445 | -5/Upper Caves | Identified Enh. Scrap Shield 29503 | -5/Upper Caves | Discovered new exit (range 5) 29547 | -5/Upper Caves | Encountered a Warlord checkpoint 29711 | -5/Upper Caves | Entered Warlord 29711 | -5/Warlord | Accompanied by 1 ally 29722 | -5/Warlord | Build established: Scavenger-Mutant 29723 | -5/Warlord | Destroyed B-75 Beast 29778 | -5/Warlord | System corruption cleaned by Quarantine Array 30116 | -5/Warlord | Found Prototype Device 30117 | -5/Warlord | Identified Minesniffer Drone Bay 30160 | -5/Warlord | Build established: Scavenger-Gunner 30385 | -5/Warlord | Rebuked by Warlord 30409 | -5/Warlord | Found Prototype Reactor 30410 | -5/Warlord | Warlord's base attacked by MAIN.C 30413 | -5/Warlord | Found Prototype Processor 30420 | -5/Warlord | Found Prototype Device 30423 | -5/Warlord | Found Prototype Processor 30622 | -5/Warlord | Warlord forces counterattacked 30703 | -5/Warlord | Lost 8 allies 30710 | -5/Warlord | Spotted Striker 30710 | -5/Warlord | Spotted Executioner 30732 | -5/Warlord | Discovered new exit (range 12) 30784 | -5/Warlord | Lost 14 allies 30810 | -5/Warlord | Spotted Executioner 30810 | -5/Warlord | Spotted Executioner 30820 | -5/Warlord | Entered Proximity Caves 30820 | -4/Proximity Caves | Accompanied by 2 allies 30866 | -4/Proximity Caves | Lost 7 allies 30898 | -4/Proximity Caves | Build established: Scavenger-Tank 30959 | -4/Proximity Caves | Attracted the attention of an 0b10 outpost 31009 | -4/Proximity Caves | Core integrity fell below 50% 31060 | -4/Proximity Caves | Destroyed 7 combat bots 31577 | -4/Proximity Caves | Learned Research emergency access door positions 31906 | -4/Proximity Caves | Spotted B-86 Titan 31941 | -4/Proximity Caves | Revealed the true nature of CR-A16's Pointy Stick 31944 | -4/Proximity Caves | Destroyed B-86 Titan 32218 | -4/Proximity Caves | Build established: Scavenger-Mutant 32488 | -4/Proximity Caves | Learned Research stockpile data 32521 | -4/Proximity Caves | Build established: Scavenger-Tank 32629 | -4/Proximity Caves | Attracted the attention of an 0b10 checkpoint 32705 | -4/Proximity Caves | Identified System Purifier 32739 | -4/Proximity Caves | Discovered new exit (range 6) 32880 | -4/Proximity Caves | Build established: Scavenger-Mutant 33085 | -4/Proximity Caves | Entered Factory 33085 | -4/Factory | Evolved 2 slots: Propulsion x1, Utility x1 33086 | -4/Factory | Identified Spectral Analyzer 33127 | -4/Factory | Found Quantum Capacitor 33656 | -4/Factory | Identified Exp. Targeting Computer 33814 | -4/Factory | Lost 4 parts (1p1n1u1w) 34399 | -4/Factory | Discovered new exit (range 6) 34404 | -4/Factory | Build established: Mutant 35059 | -4/Factory | Entered Research 35059 | -3/Research | Evolved 2 slots: Propulsion x1, Utility x1 35060 | -3/Research | Loaded intel: 64 trap records 35063 | -3/Research | Loaded intel: 100 machine locations 35198 | -3/Research | Fabricated Quantum Reactor? 35240 | -3/Research | Discovered new exit (range 10) 35416 | -3/Research | Entered another Research area 35416 | -2/Research | Evolved 2 slots: Power x1, Utility x1 35585 | -2/Research | System corruption reached 10% 35629 | -2/Research | Lost 10 parts (2p2n5u1w) 35705 | -2/Research | Lost 3 parts (1n2u) 35837 | -2/Research | Lost 11 parts (1p6n3u1w) 35844 | -2/Research | Build established: Scavenger-Mutant 35918 | -2/Research | Lost 4 parts (2n2u) 35964 | -2/Research | Core integrity fell below 50% 35970 | -2/Research | Spotted B-90 Cyclops 35981 | -2/Research | Lost 8 parts (1p3n2u2w) 35992 | -2/Research | Core integrity fell below 20% 36009 | -2/Research | Destroyed by G-73 Enforcer with Phase Gun Last Messages --------------- 35960_ M-28 Smith repairs P-80 Master. 35960_ Triggered Segregator Trap. 35960_ Arcs of energy rise from the floor. 35960_ Imp. Antigrav System blown off. 35960_ Adv. Target Analyzer blown off. 35963_ Knocked back. 35972_ System corrupted: Component data lost. 35981_ Acquired Enh. Quantum Rifle. 35987_ P-80 Master destroyed. 35990_ System corrupted: IFF burst signal emitted. 35990_ Acquired 59 matter. 35992_ Acquired Gamma Rifle. 35995_ ALERT: Suspicious intruders detected, dispatching Specialist reinforcements to area. 35997_ Enh. Quantum Rifle destroyed. 36002_ Gamma Rifle destroyed. 36002_ Slammed into G-73 Enforcer. 36006_ System corrupted: Component data lost. 36006_ Acquired Imp. Antigrav System. 36008_ Door malfunctions. Map ----- +----------------------------------------------------+ | ?????????????????????????????????????????????????? | | ?????????????????????????????????????????????????? | | ?????????????????????????????????????????????????? | | ?????????????????????????????????????????????????? | | ?????????????????????????????????????????????????? | | ?????????????????????????????????????????????????? | | ?????????????????????????????????????????????????? | | ??????????????????????????????##?????????????????? | | ??????????????????????????????B ?????????????????? | | ??????????????????????########B??###?????????????? | | ??????????????????????? ]]] ?? +?????????????? | | ??????????????????????? ]]] ?? #?????????????? | | ??????????????????????? ]] ??? +?????????????? | | ??????????????????????? ??? #?????????????? | | ???????????????????????# ??? #?????????????? | | ???????????????????????# ???? #?????????????? | | ???????????????????????# ???? #?????????????? | | ???????????????????????# #????# #?????????????? | | ???????????????????????# #????# #?????????????? | | ???????????????????????# #????# #?????????????? | | ?????????????#######???# #????# #?????????????? | | ?????????????# ??# ######+###???????????? | | ??????????????# * ??# # #???????????? | | ??????????????# ?# # = #???????????? | | ??????????????# """ ?# # #???????????? | | ??????????????# "R !# @ # """ #???????????? | | ??????????????# """ # g#[ """ #???????????? | | ??????????????# "" / !gg """ #???????????? | | ??????????????# # #% #???????????? | | ??????????????# # # #???????????? | | ?????????????#########?# # #???????????? | | ?????????????# = ?# ##/################??? | | ?????????????# = # ## #?# ! #??? | | ?????????????# # ## #?# #??? | | ?????????????# + ##/#?# """ """ #??? | | ?????????????# # #!! # """ """ #??? | | ?????????????# """ # p#! # """ "" #??? | | ?????????????# """ ?# #!H /# #??? | | ?????????????# """ ?# g # # #??? | | ?????????????########??# # #""" #??? | | ???????????????????????# + #"Y #??? | | ???????????????????????# # #"" #??? | | ???????????????????????# #! [ + #??? | | ???????????????????????# # # #??? | | ????????????????######## ############/######### | | ????????????????# % ^= !* | | ????????????????+ * | | ????????????????# | | ????????????????# | | ????????????????####+######+############"/######## | +----------------------------------------------------+ Best States ------------- Heat Dissipation 77 Coolant Potential 80 Energy Generation 73 Energy Capacity 1300 Matter Stores 300 Matter Capacity 300 Sight Range 24 Robot Scan Range 20 Terrain Scan Range 16 Terrain Scan Density 10 Jamming Range 16 Cloak Strength 3 EM Shielding 2 Armor Coverage 1175 Resistance: TH 30 Resistance: EM 15 Utility Shielding 66 Weapon Shielding 100 Phase Shifting 15 Evasion (%) 70 Targeting Accuracy 12 Target Analysis 12 Core Analysis 6 Recoil Reduction 2 Particle Charging 25 Salvage Targeting 4 Defensive Hacking 12 Item Schematics ----------------- Cld. Plasma Rifle | -6/Factory | Hacked Mak. Shrapnel Gun | -6/Factory | Extrapolated Mak. System Shield | -6/Factory | Extrapolated Energy Deflector | -6/Factory | Extrapolated Mak. Spear | -6/Factory | Extrapolated Beamcaster | -6/Factory | Extrapolated Mak. Power Source | -6/Factory | Extrapolated Transmission Jammer | -6/Factory | Scanalyzed CPS Tube | -6/Factory | Scanalyzed Adv. Sensor Array | -6/Factory | Scanalyzed Cld. Antigrav System | -4/Factory | Scanalyzed Robot Schematics ------------------ None Fabricated ------------ Imp. Medium Treads | x2 | -6/Factory | Preloaded Quantum Reactor | x2 | -3/Research | Preloaded Alien Tech Used ----------------- None Achievements -------------- None Challenges ------------ None Game ------ Seed CompactAlloyOptics Manual? 0 Play Time 03:47:23 Cumulative 253.6 hours Start 2024.09.10 @ 12:26:29 End 2024.09.10 @ 17:38:06 Sessions 5 Manual Loads 0 Difficulty Rogue Special Mode None Game No. 214 Rogue 214 Adventurer 0 Explorer 0 Win Type - Total 1 Types 0/0/0/1/0/0/0/0/0 Lore% 69 Gallery% 76 Achievement% 56 Wizard Run 0 Options --------- Layout 2 ASCII 0 Keyboard 1 Movement Vi Keybinds 0 Fullscreen 1 Font 32/SmallcapsGlow Map View 77x44 Zoom Use 0% Tactical HUD 1 Map Filters NONE Filters NONE Steam 1 RUN: f294348c-24f3-4107-a22a-af276ddcbf70